bitfinex-derivatives/quotes_BNBF0:USTF0_20251203
["timestamp","ask_amount","ask_price","bid_price","bid_amount"]
[1764733629942,0.19572829,889.26,888.53,0.84034316]
[1764733630344,0.19572829,889.26,888.52,0.84034316]
[1764733632042,0.19572829,889.26,888.5,0.724]
[1764733634944,0.19572829,889.26,888.51,0.752]
[1764733644253,0.84414253,889.14,888.51,0.752]
[1764733645356,0.84414253,889.13,888.51,0.752]
[1764733648259,0.84414253,889.12,888.51,0.752]
[1764733648759,0.84414253,889.11,888.51,0.752]
[1764733649156,0.84414253,889.1,888.51,0.752]
[1764733649461,0.84414253,889.08,888.51,0.752]
[1764733649660,0.84414253,889.02,888.51,0.752]
[1764733652257,0.84414253,889.01,888.51,0.752]
[1764733657272,0.84414253,889.0,888.51,0.752]
[1764733657472,0.84414253,889.01,888.51,0.752]
[1764733657873,0.84414253,889.01,888.52,0.867]
[1764733662274,0.84414253,889.02,888.52,0.867]
[1764733664275,0.84414253,889.03,888.52,0.867]
[1764733665472,0.84414253,889.02,888.52,0.867]
[1764733666673,0.84414253,889.03,888.52,0.867]
[1764733669479,0.19572829,889.26,888.52,0.867]
[1764733669480,0.84414253,889.04,888.52,0.867]
[1764733673984,0.84414253,889.05,888.52,0.867]
[1764733680487,0.84414253,889.06,888.52,0.867]
[1764733683393,0.84414253,889.05,888.52,0.867]
[1764733683591,0.84414253,889.07,888.52,0.867]
[1764733683789,0.19572829,889.26,888.52,0.867]
[1764733683790,0.84414253,889.14,888.52,0.867]
[1764733684689,0.84414253,889.14,888.51,0.752]
[1764733684989,0.84414253,889.13,888.51,0.752]
[1764733685695,0.19572829,889.26,888.51,0.752]
[1764733685696,0.84414253,889.12,888.51,0.752]
[1764733686896,0.84414253,889.17,888.51,0.752]
[1764733687093,0.84414253,889.16,888.51,0.752]
[1764733687293,0.84414253,889.16,888.52,1.019]
[1764733688395,0.84414253,889.15,888.52,1.019]
[1764733689495,0.84414253,889.14,888.52,1.019]
[1764733690399,0.84414253,889.13,888.52,1.019]
[1764733691397,0.84414253,889.11,888.52,1.019]
[1764733692599,0.84414253,889.13,888.52,1.019]
[1764733692899,0.84414253,889.12,888.52,1.019]
[1764733693399,0.84414253,889.11,888.52,1.019]
[1764733694400,0.84414253,889.1,888.52,1.019]
[1764733695796,0.84414253,889.1,888.53,0.754]
[1764733696296,0.84414253,889.09,888.53,0.754]
[1764733697298,0.84414253,889.08,888.53,0.754]
[1764733698401,0.84414253,889.07,888.53,0.754]
[1764733698902,0.84414253,889.1,888.53,0.754]
[1764733699102,0.84414253,889.16,888.53,0.754]
[1764733699498,0.84414253,889.19,888.53,0.754]
[1764733699903,0.84414253,889.22,888.53,0.754]
[1764733700103,0.84414253,889.23,888.53,0.754]
[1764733700301,0.84414253,889.22,888.53,0.754]
[1764733701303,0.19572829,889.26,888.54,0.84034316]
[1764733701504,0.19572829,889.26,888.59,0.84034316]
[1764733702204,0.19572829,889.26,888.58,0.84034316]
[1764733703208,0.19572829,889.26,888.53,0.754]
[1764733703209,0.19572829,889.26,888.57,0.84034316]
[1764733704100,0.19572829,889.26,888.56,0.84034316]
[1764733705204,0.19572829,889.26,888.55,0.84034316]
[1764733706104,0.19572829,889.26,888.54,0.84034316]
[1764733707206,0.19572829,889.26,888.53,0.754]
[1764733707207,0.19572829,889.26,888.53,1.59434316]
[1764733708105,0.19572829,889.26,888.53,0.754]
[1764733712703,0.19572829,889.26,888.52,1.019]
[1764733715211,0.19572829,889.26,888.53,0.794]
[1764733718414,0.19572829,889.26,888.54,1.103]
[1764733730322,0.84414253,889.23,888.54,1.103]
[1764733730720,0.84414253,889.12,888.54,1.103]
[1764733732327,0.84414253,889.11,888.54,1.103]
[1764733733827,0.84414253,889.1,888.54,1.103]
[1764733734728,0.84414253,889.14,888.54,1.103]
[1764733734928,0.84414253,889.17,888.54,1.103]
[1764733735325,0.84414253,889.22,888.54,1.103]
[1764733736227,0.84414253,889.21,888.54,1.103]
[1764733736529,0.84414253,889.2,888.54,1.103]
[1764733737023,0.84414253,889.21,888.54,1.103]
[1764733737229,0.84414253,889.23,888.54,1.103]
[1764733737427,0.84414253,889.22,888.54,1.103]
[1764733737626,0.19572829,889.26,888.54,1.103]
[1764733747032,0.84084566,889.24,888.54,1.103]
[1764733747532,0.84084566,889.23,888.54,1.103]
[1764733748832,0.84084566,889.17,888.54,1.103]
[1764733751136,0.84084566,889.16,888.54,1.103]
[1764733753237,0.84084566,889.15,888.54,1.103]
[1764733755145,0.84084566,889.14,888.54,1.103]
[1764733757246,0.84084566,889.14,888.55,0.784]
[1764733758647,0.84084566,889.1,888.55,0.784]
[1764733758847,0.84084566,889.06,888.55,0.784]
[1764733759649,0.84084566,889.01,888.55,0.784]
[1764733761351,0.84084566,889.02,888.55,0.784]
[1764733761551,0.84084566,889.01,888.56,0.919]
[1764733761850,0.84084566,889.0,888.56,0.919]
[1764733762050,0.84084566,888.97,888.56,0.919]
[1764733763152,0.84084566,888.96,888.56,0.919]
[1764733764550,0.84084566,888.97,888.56,0.919]
[1764733765348,0.84084566,888.98,888.56,0.919]
[1764733767353,0.84084566,888.99,888.56,0.919]
[1764733767554,0.84084566,889.0,888.56,0.919]
[1764733769850,0.84084566,889.03,888.56,0.919]
[1764733770349,0.84084566,889.07,888.56,0.919]
[1764733770954,0.84084566,889.1,888.56,0.919]
[1764733771155,0.84084566,889.13,888.56,0.919]
[1764733771356,0.19572829,889.26,888.56,0.919]
[1764733771357,0.84084566,889.16,888.56,0.919]
[1764733772358,0.84084566,889.15,888.56,0.919]
[1764733772654,0.84084566,889.21,888.56,0.919]
[1764733774453,0.84084566,889.2,888.56,0.919]
[1764733776360,0.84084566,889.21,888.56,0.919]
[1764733778163,0.84084566,889.2,888.56,0.919]
[1764733788475,0.84084566,889.19,888.56,0.919]
[1764733791377,0.19572829,889.26,888.56,0.919]
[1764733791378,0.84084566,889.09,888.56,0.919]
[1764733793376,0.84084566,889.08,888.56,0.919]
[1764733793979,1.11626755,889.24,888.56,0.919]
[1764733794180,0.84142516,889.08,888.56,0.919]
[1764733795978,0.84142516,889.08,888.55,0.784]
[1764733796482,0.84142516,889.03,888.55,0.784]
[1764733796680,0.84142516,889.02,888.55,0.784]
[1764733796983,0.84142516,888.94,888.55,0.784]
[1764733797277,0.84142516,888.92,888.55,0.784]
[1764733798179,0.84142516,888.92,888.14,0.83625622]
[1764733798682,0.84142516,888.92,888.15,0.762]
[1764733799378,0.84142516,888.93,888.15,0.762]
[1764733801278,0.84142516,888.94,888.15,0.762]
[1764733801777,0.84142516,888.94,888.16,0.756]
[1764733802283,0.84142516,888.95,888.16,0.756]
[1764733804285,0.84142516,888.96,888.16,1.59225622]
[1764733804982,0.84142516,888.97,888.17,0.83625622]
[1764733805187,0.84142516,889.02,888.23,0.83625622]
[1764733805384,0.19572829,889.26,888.16,1.59225622]
[1764733805385,0.84142516,888.95,888.16,1.59225622]
[1764733805681,0.84142516,888.94,888.16,1.59225622]
[1764733806085,0.84142516,888.95,888.16,0.756]
[1764733806288,0.84142516,888.94,888.16,0.756]
[1764733806587,0.84142516,888.93,888.16,0.756]
[1764733807383,0.84142516,888.89,888.16,0.756]
[1764733807688,0.84142516,888.78,888.16,0.756]
[1764733808189,0.84142516,888.79,888.16,0.756]
[1764733808486,0.84142516,888.74,888.16,0.756]
[1764733809491,0.84142516,888.67,888.16,0.756]
[1764733810087,0.84142516,888.69,888.16,0.756]
[1764733811188,0.84142516,888.68,888.16,0.756]
[1764733811991,0.84142516,888.61,888.16,0.756]
[1764733812193,0.84142516,888.63,888.16,0.756]
[1764733812492,0.84142516,888.6,888.16,0.756]
[1764733813192,0.84142516,888.62,888.16,0.756]
[1764733814190,0.84142516,888.64,888.16,0.756]
[1764733815194,0.83929098,888.65,888.16,0.756]
[1764733815394,0.83929098,888.66,888.16,0.756]
[1764733816291,0.83929098,888.67,888.16,0.756]
[1764733817191,0.83929098,888.68,888.16,0.756]
[1764733818097,0.83929098,888.69,888.16,0.756]
[1764733819099,0.83929098,888.7,888.16,0.756]
[1764733819500,0.83929098,888.71,888.16,0.756]
[1764733820196,0.83929098,888.72,888.16,0.756]
[1764733821102,0.83929098,888.73,888.16,0.756]
[1764733822399,0.83929098,888.74,888.16,0.756]
[1764733823204,0.83929098,888.75,888.16,0.756]
[1764733824103,0.83929098,888.76,888.16,0.756]
[1764733824802,0.83929098,888.77,888.16,0.756]
[1764733825205,0.83929098,888.78,888.16,0.756]
[1764733826209,0.83929098,888.79,888.16,0.756]
[1764733827109,0.83929098,888.8,888.16,0.756]
[1764733827605,0.83929098,888.79,888.16,0.756]
[1764733828110,0.83929098,888.79,888.17,0.749]
[1764733828406,0.83929098,888.8,888.17,0.749]
[1764733829510,0.83929098,888.81,888.17,0.749]
[1764733830211,0.19588804,888.66,888.17,0.749]
[1764733839216,0.19588804,888.66,888.16,0.756]
[1764733840813,0.19588804,888.66,887.6,0.00907328]
[1764733841013,0.19588804,888.66,888.17,0.71]
[1764733844019,0.19588804,888.66,888.18,0.764]
[1764733852426,1.03232562,888.66,888.18,0.764]
[1764733853324,0.83643758,888.65,888.18,0.764]
[1764733854224,0.83643758,888.64,888.18,0.764]
[1764733854528,0.19588804,888.66,888.18,0.764]
[1764733854529,0.83643758,888.63,888.18,0.764]
[1764733855330,0.83643758,888.62,888.18,0.764]
[1764733856229,0.83643758,888.61,888.18,0.764]
[1764733856430,0.83643758,888.6,888.18,0.764]
[1764733857431,0.83643758,888.59,888.18,0.764]
[1764733858430,0.83643758,888.64,888.18,0.764]
[1764733859530,0.83643758,888.63,888.18,0.764]
[1764733860033,0.19588804,888.66,888.18,0.764]
[1764733862230,1.03232562,888.66,888.18,0.764]
[1764733862634,0.19588804,888.66,888.18,0.764]
[1764733863232,1.03232562,888.66,888.18,0.764]
[1764733864136,0.83643758,888.64,888.18,0.764]
[1764733865230,0.83643758,888.62,888.18,0.764]
[1764733866137,0.83643758,888.6,888.18,0.764]
[1764733867134,0.83643758,888.58,888.18,0.764]
[1764733868238,0.83643758,888.57,888.18,0.764]
[1764733868634,0.83643758,888.56,888.18,0.764]
[1764733869135,0.83643758,888.55,888.18,0.764]
[1764733871134,0.83643758,888.54,888.18,0.764]
[1764733871336,0.83643758,888.55,888.18,0.764]
[1764733875741,0.83643758,888.56,888.18,0.764]
[1764733876042,0.83643758,888.56,888.19,0.761]
[1764733876242,0.84279216,888.56,888.19,0.761]
[1764733877138,0.19588804,888.66,888.19,0.761]
[1764733877139,0.84279216,888.58,888.19,0.761]
[1764733878043,0.84279216,888.59,888.19,0.761]
[1764733883244,0.84279216,888.6,888.19,0.761]
[1764733888148,0.84279216,888.6,888.18,0.764]
[1764733889144,0.84279216,888.61,888.18,0.764]
[1764733889944,0.84279216,888.61,888.19,0.902]
[1764733895451,0.84279216,888.6,888.19,0.902]
[1764733899348,0.84279216,888.55,888.19,0.902]
[1764733899947,0.84254335,888.55,888.19,0.902]
[1764733900145,0.84254335,888.54,888.19,0.902]
[1764733903254,0.84254335,888.53,888.19,0.902]
[1764733903951,0.84254335,888.52,888.19,0.902]
[1764733905052,0.84254335,888.51,888.19,0.902]
[1764733905352,0.84254335,888.51,888.2,1.056]
[1764733909057,0.84254335,888.5,888.2,1.056]
[1764733910255,0.84254335,888.51,888.2,1.056]
[1764733911555,0.84254335,888.5,888.2,1.056]
[1764733912159,0.84254335,888.49,888.2,1.056]
[1764733915264,0.84254335,888.48,888.2,1.056]
[1764733915663,0.84254335,888.47,888.2,1.056]
[1764733916264,0.19588804,888.66,888.2,1.056]
[1764733916265,0.84254335,888.46,888.2,1.056]
[1764733918267,0.84254335,888.45,888.2,1.056]
[1764733920265,0.84254335,888.42,888.2,1.056]
[1764733920466,0.84254335,888.37,888.2,1.056]
[1764733921368,0.84254335,888.38,888.2,1.056]
[1764733923268,0.84254335,888.39,888.2,1.056]
[1764733925174,0.84254335,888.4,888.2,1.056]
[1764733928179,0.84254335,888.41,888.09,0.735]
[1764733928680,0.84254335,888.28,888.09,0.735]
[1764733929181,0.84340513,888.26,888.09,0.735]
[1764733929477,0.84340513,888.29,888.09,0.735]
[1764733930180,0.84340513,888.3,888.09,0.735]
[1764733931176,0.84340513,888.31,888.09,0.735]
[1764733932884,0.84340513,888.32,888.09,0.735]
[1764733934185,0.84340513,888.33,888.09,0.735]
[1764733935185,0.84340513,888.34,888.09,0.735]
[1764733935786,1.11626755,888.5,888.09,0.735]
[1764733936085,1.12648069,888.49,888.09,0.735]
[1764733936686,1.12648069,888.48,888.09,0.735]
[1764733936883,1.8762135,888.66,888.09,0.735]
[1764733937082,1.12639472,888.65,888.09,0.735]
[1764733937488,0.19588804,888.66,888.09,0.735]
[1764733937489,0.84205092,888.43,888.09,0.735]
[1764733937985,0.84205092,888.42,888.09,0.735]
[1764733938689,0.84205092,888.47,888.09,0.735]
[1764733941690,0.84205092,888.48,888.09,0.735]
[1764733944890,0.84205092,888.47,888.09,0.735]
[1764733945393,0.84205092,888.46,888.09,0.735]
[1764733945593,0.84205092,888.42,888.09,0.735]
[1764733947695,0.84205092,888.41,888.09,0.735]
[1764733950403,0.84205092,888.41,888.1,0.848]
[1764733951407,0.84205092,888.4,888.1,0.848]
[1764733953108,0.84205092,888.41,888.1,0.848]
[1764733955713,0.84205092,888.42,888.1,1.932]
[1764733955910,0.84205092,888.48,888.1,1.932]
[1764733958314,0.84205092,888.47,888.1,1.932]
[1764733963223,0.84205092,888.46,888.1,1.932]
[1764733969235,0.84205092,888.45,888.1,1.932]
[1764733972437,0.84205092,888.5,888.1,1.932]
[1764733977844,0.84205092,888.5,888.1,0.848]
[1764733978139,0.84205092,888.51,888.1,0.848]
[1764733978443,0.84205092,888.5,888.1,0.848]
[1764733978643,0.84205092,888.5,887.85,0.83942821]
[1764733979141,0.84205092,888.52,887.86,0.83942821]
[1764733979440,0.84205092,888.58,887.92,0.83942821]
[1764733979741,0.84205092,888.59,887.93,0.83942821]
[1764733980138,1.03793896,888.66,888.0,0.83942821]
[1764733980338,0.19588804,888.66,888.03,0.83942821]
[1764733981145,0.19588804,888.66,888.02,0.83942821]
[1764733981346,0.19588804,888.66,888.07,0.83942821]
[1764733981848,0.19588804,888.66,888.08,0.755]
[1764734001157,1.03793896,888.66,888.08,0.755]
[1764734001357,0.19588804,888.66,888.08,0.755]
[1764734002161,1.03793896,888.66,888.08,0.755]
[1764734002662,0.84205092,888.65,888.08,0.755]
[1764734002857,0.84205092,888.61,888.08,0.755]
[1764734003162,0.84205092,888.59,888.08,0.755]
[1764734003357,0.84205092,888.56,888.08,0.755]
[1764734003958,0.84205092,888.55,888.08,0.755]
[1764734004157,0.84205092,888.46,888.08,0.755]
[1764734006660,0.84205092,888.46,888.09,1.107]
[1764734006864,0.84205092,888.45,888.09,1.107]
[1764734007964,0.84205092,888.44,888.09,1.107]
[1764734009767,0.84205092,888.38,888.09,1.107]
[1764734010066,0.84205092,888.39,888.09,1.107]
[1764734015167,0.84205092,888.4,888.09,1.107]
[1764734017170,0.84205092,888.41,888.09,1.107]
[1764734020171,0.84205092,888.42,888.09,1.107]
[1764734020672,0.84205092,888.42,888.1,0.822]
[1764734021871,0.84205092,888.45,888.1,0.822]
[1764734024374,0.84205092,888.46,888.1,0.822]
[1764734028174,0.84205092,888.47,888.1,0.822]
[1764734029379,0.84205092,888.63,888.1,0.822]
[1764734030575,0.19589521,888.5,888.1,0.822]
[1764734044689,0.19589521,888.5,888.11,1.026]
[1764734062196,0.19589521,888.5,888.12,0.952]
[1764734073210,0.19589521,888.5,888.13,0.688]
[1764734079114,0.19581805,888.63,888.13,0.688]
[1764734092128,0.19581805,888.63,888.16,0.83467698]
[1764734093229,0.19581805,888.63,888.17,0.83467698]
[1764734093626,0.19581805,888.63,888.17,0.83680851]
[1764734094127,0.19581805,888.63,888.18,0.83680851]
[1764734095123,0.19581805,888.63,888.12,0.952]
[1764734095124,0.19581805,888.63,888.19,0.83680851]
[1764734095330,0.19581805,888.63,888.2,0.83680851]
[1764734095728,0.19581805,888.63,888.2,1.58380851]
[1764734096130,0.19581805,888.63,888.21,0.83680851]
[1764734096829,0.19581805,888.63,888.2,1.58380851]
[1764734097127,0.19581805,888.63,888.21,0.83680851]
[1764734098133,0.19581805,888.63,888.22,0.83680851]
[1764734098632,0.19581805,888.63,888.21,0.83680851]
[1764734099134,0.19581805,888.63,888.22,0.83680851]
[1764734102431,0.19581805,888.63,888.2,0.747]
[1764734109636,0.19581805,888.63,888.23,0.83680851]
[1764734110337,0.19581805,888.63,888.24,0.83680851]
[1764734112341,0.19581805,888.63,888.25,0.83680851]
[1764734113242,0.19581805,888.63,888.26,0.83680851]
[1764734116244,0.19581805,888.63,888.27,0.83680851]
[1764734117645,0.19581805,888.63,888.28,0.83680851]
[1764734117851,0.19581805,888.63,888.31,0.83680851]
[1764734122051,0.19581805,888.63,888.35,0.83680851]
[1764734122251,0.19581805,888.63,888.34,0.83680851]
[1764734123051,0.19581805,888.63,888.36,0.83680851]
[1764734124950,0.19581805,888.63,888.35,0.83680851]
[1764734130352,0.19581805,888.63,888.34,0.83680851]
[1764734133152,0.19581805,888.63,888.35,0.83680851]
[1764734139362,0.19581805,888.63,888.34,0.83680851]
[1764734140765,0.19581805,888.63,888.35,0.83680851]
[1764734143365,0.19581805,888.63,888.34,0.83680851]
[1764734144366,0.19581805,888.63,888.33,0.83680851]
[1764734161374,0.19581805,888.63,888.32,2.017]
[1764734167381,0.19581805,888.63,888.32,2.85380851]
[1764734168287,0.19581805,888.63,888.33,0.83680851]
[1764734171290,0.19581805,888.63,888.34,0.83680851]
[1764734172986,0.19581805,888.63,888.35,0.83680851]
[1764734173286,0.19581805,888.63,888.37,0.83680851]
[1764734174891,0.19581805,888.63,888.4,0.83680851]
[1764734176391,0.19581805,888.63,888.41,0.83680851]
[1764734176893,0.19581805,888.63,888.38,0.83680851]
[1764734177186,0.19581805,888.63,888.32,2.017]
[1764734184200,0.84051927,888.49,888.32,2.017]
[1764734184399,0.19581805,888.63,888.32,2.017]
[1764734184400,0.84051927,888.53,888.32,2.017]
[1764734184599,0.84051927,888.53,887.83,0.83680851]
[1764734185395,0.84051927,888.56,887.8,0.83680851]
[1764734186402,0.84051927,888.58,887.78,0.83680851]
[1764734187297,0.84051927,888.6,887.79,0.831]
[1764734187602,0.19581805,888.63,887.87,0.83680851]
[1764734188298,0.19581805,888.63,887.86,0.83680851]
[1764734188598,0.19581805,888.63,887.88,0.771]
[1764734201322,0.19581805,888.63,887.88,1.60780851]
[1764734201719,0.19581805,888.63,887.96,0.83680851]
[1764734202323,0.19581805,888.63,887.98,0.83680851]
[1764734204524,0.19581805,888.63,888.06,0.83680851]
[1764734205224,0.19581805,888.63,888.07,0.83680851]
[1764734205719,0.19581805,888.63,888.06,0.83680851]
[1764734206123,0.19581805,888.63,888.05,0.83680851]
[1764734206321,0.19581805,888.63,888.01,0.83680851]
[1764734206524,0.19581805,888.63,887.98,0.83680851]
[1764734207321,0.19581805,888.63,887.99,0.83680851]
[1764734209728,0.19581805,888.63,887.97,0.83680851]
[1764734210329,0.19581805,888.63,887.98,0.83680851]
[1764734210927,0.19581805,888.63,887.99,1.017]
[1764734218230,0.19581805,888.63,888.0,0.83680851]
[1764734219132,0.19581805,888.63,888.02,0.83680851]
[1764734224836,0.19581805,888.63,888.03,0.942]
[1764734225334,0.19581805,888.63,888.03,1.77880851]
[1764734225837,0.19581805,888.63,888.04,0.83680851]
[1764734226038,0.19581805,888.63,888.14,0.83680851]
[1764734227338,0.19581805,888.63,888.13,0.83680851]
[1764734230340,0.19581805,888.63,888.12,0.83680851]
[1764734230538,0.19581805,888.63,888.03,0.942]
[1764734238748,0.84051927,888.61,888.03,0.942]
[1764734239147,0.84051927,888.6,888.03,0.942]
[1764734242452,0.84051927,888.61,888.03,0.942]
[1764734243351,0.84051927,888.62,888.03,0.942]
[1764734244351,0.84051927,888.61,888.03,0.942]
[1764734249356,0.19588914,888.47,888.03,0.942]
[1764734251654,0.19588914,888.47,888.04,0.98]
[1764734264663,0.19588914,888.47,888.05,0.969]
[1764734289287,0.19588914,888.47,888.05,1.80580851]
[1764734290295,0.19588914,888.47,888.06,0.83680851]
[1764734291695,0.19588914,888.47,888.09,0.83680851]
[1764734294698,0.19588914,888.47,888.08,0.83680851]
[1764734294894,0.19588914,888.47,888.04,0.98]
[1764734296600,0.19588914,888.47,888.05,0.748]
[1764734302706,0.19588914,888.47,888.06,0.823]
[1764734322222,0.19588914,888.47,888.06,1.65980851]
[1764734324127,0.19588914,888.47,888.06,0.823]
[1764734324626,0.19588914,888.47,888.0,0.83680851]
[1764734326326,0.19588914,888.47,887.84,1.11923762]
[1764734326327,0.19588914,888.47,888.01,0.83680851]
[1764734327623,0.19588914,888.47,888.02,0.799]
[1764734328433,0.19588914,888.47,888.03,0.82]
[1764734331331,0.19588914,888.47,888.03,1.65680851]
[1764734333334,0.19588914,888.47,888.04,0.83680851]
[1764734335330,0.19588914,888.47,888.05,0.83680851]
[1764734337340,0.19588914,888.47,888.06,0.83680851]
[1764734337836,0.19588914,888.47,888.05,0.83680851]
[1764734339240,0.19588914,888.47,888.06,0.83680851]
[1764734339435,0.19588914,888.47,888.05,0.83680851]
[1764734339740,0.19588914,888.47,888.03,0.82]
[1764734343242,0.84051927,888.42,888.03,0.82]
[1764734343438,0.84051927,888.38,888.03,0.82]
[1764734344138,0.84051927,888.4,888.03,0.82]
[1764734345141,0.84051927,888.42,888.03,0.82]
[1764734345341,0.84051927,888.41,888.03,0.82]
[1764734346341,0.84051927,888.43,888.03,0.82]
[1764734347240,0.19588914,888.47,888.03,0.82]
[1764734356746,0.19588914,888.47,888.04,1.104]
[1764734370858,0.19588914,888.47,888.03,0.82]
[1764734373060,0.19588914,888.47,888.04,0.959]
[1764734378567,0.19588914,888.47,888.05,1.087]
[1764734390381,0.19588914,888.47,888.04,0.959]
[1764734392281,0.84194128,888.42,888.04,0.959]
[1764734394478,0.84194128,888.42,888.05,1.018]
[1764734396479,0.84194128,888.46,888.05,1.018]
[1764734397385,0.19588914,888.47,888.05,1.018]
[1764734401093,1.03783042,888.47,888.05,1.018]
[1764734402193,0.19588914,888.47,888.05,1.018]
[1764734403095,1.03783042,888.47,888.05,1.018]
[1764734403293,0.84194128,888.42,888.05,1.018]
[1764734403496,0.84194128,888.33,888.05,1.018]
[1764734403896,0.84194128,888.32,888.05,1.018]
[1764734404096,0.84194128,888.31,888.05,1.018]
[1764734404291,0.84194128,888.32,888.05,1.018]
[1764734405194,0.84194128,888.33,888.05,1.018]
[1764734405595,0.84194128,888.34,888.05,1.018]
[1764734406092,0.84194128,888.35,888.05,1.018]
[1764734406297,0.84194128,888.36,888.05,1.018]
[1764734406497,0.84194128,888.45,888.05,1.018]
[1764734407598,0.84194128,888.45,888.04,0.959]
[1764734408093,0.19588914,888.47,888.04,0.959]
[1764734409398,0.19588914,888.47,888.04,1.80002814]
[1764734409598,0.19588914,888.47,888.05,0.84102814]
[1764734410099,0.19588914,888.47,888.04,1.80002814]
[1764734411701,0.19588914,888.47,888.05,0.774]
[1764734413399,0.19588914,888.47,888.06,0.84102814]
[1764734413598,0.19588914,888.47,888.14,0.84102814]
[1764734414602,0.19588914,888.47,888.15,0.938]
[1764734425609,0.19588914,888.47,888.05,0.774]
[1764734428411,0.19588914,888.47,888.06,1.042]
[1764734432710,0.84135183,888.42,888.06,1.042]
[1764734433110,0.84135183,888.41,888.06,1.042]
[1764734435315,0.84135183,888.42,888.06,1.042]
[1764734438419,0.84135183,888.39,888.06,1.042]
[1764734439419,0.84135183,888.35,888.06,1.042]
[1764734439618,0.84135183,888.34,888.06,1.042]
[1764734439921,0.84135183,888.33,888.06,1.042]
[1764734440423,0.84135183,888.29,888.06,1.042]
[1764734440722,0.19588914,888.47,888.06,1.042]
[1764734440723,0.84135183,888.26,888.06,1.042]
[1764734441423,0.84135183,888.27,888.06,1.042]
[1764734442124,0.84135183,888.31,888.06,1.042]
[1764734442320,0.84135183,888.36,888.06,1.042]
[1764734442520,0.84135183,888.45,888.06,1.042]
[1764734443320,0.84135183,888.45,888.07,0.989]
[1764734445123,0.84135183,888.46,888.07,0.989]
[1764734448325,1.03724097,888.47,888.07,0.989]
[1764734449225,0.84135183,888.47,888.07,0.989]
[1764734449523,0.19592885,888.38,888.07,0.989]
[1764734458542,1.03728068,888.38,888.07,0.989]
[1764734459044,0.84135183,888.37,888.07,0.989]
[1764734459338,0.84135183,888.33,888.07,0.989]
[1764734462141,0.84135183,888.34,888.07,0.989]
[1764734464245,0.84135183,888.35,888.07,0.989]
[1764734464444,0.84135183,888.35,888.06,1.042]
[1764734466041,0.19592885,888.38,888.06,1.042]
[1764734467642,0.19592885,888.38,888.07,0.774]
[1764734473048,0.19592885,888.38,888.07,1.796]
[1764734474944,0.19592885,888.38,888.07,0.774]
[1764734497557,0.84135183,888.37,888.07,0.774]
[1764734498158,0.84135183,888.36,888.07,0.774]
[1764734498353,0.84135183,888.37,888.07,0.774]
[1764734499954,0.84135183,888.36,888.07,0.774]
[1764734500855,0.84135183,888.3,888.07,0.774]
[1764734502055,0.84135183,888.31,888.07,0.774]
[1764734503255,0.84135183,888.32,888.07,0.774]
[1764734510263,0.84135183,888.36,888.07,0.774]
[1764734510468,0.84135183,888.37,888.07,0.774]
[1764734511165,0.84135183,888.36,888.07,0.774]
[1764734511363,0.84135183,888.37,888.07,0.774]
[1764734512169,0.84135183,888.36,888.07,0.774]
[1764734512370,0.84135183,888.37,888.07,0.774]
[1764734513373,0.19592885,888.38,888.07,0.774]
[1764734515672,0.84135183,888.37,888.07,0.774]
[1764734515974,0.84135183,888.36,888.07,0.774]
[1764734517374,0.19592885,888.38,888.07,0.774]
[1764734519276,1.03728068,888.38,888.07,0.774]
[1764734522377,0.84135183,888.37,888.07,0.774]
[1764734523174,0.84135183,888.36,888.07,0.774]
[1764734523378,0.19592885,888.38,888.07,0.774]
[1764734523677,0.19592885,888.38,887.73,0.84083012]
[1764734524273,0.19592885,888.38,887.74,0.84083012]
[1764734525276,1.03728068,888.38,887.75,0.84083012]
[1764734527879,0.19592885,888.38,887.78,0.84083012]
[1764734528078,0.19592885,888.38,887.86,0.84083012]
[1764734529584,0.19592885,888.38,887.84,0.84083012]
[1764734532289,0.19592885,888.38,887.83,0.84083012]